fUST/lending_fUST_20240721
["ID","MTS","AMOUNT","RATE_DAILY","PERIOD"]
[332758976,1721506246473,-500.0,0.00013698,2]
[332758977,1721506246483,-902.47,0.00013698,2]
[332758978,1721506246493,-533.97409384,0.00013698,2]
[332758979,1721506246502,-3104.21,0.00013698,2]
[332758980,1721506246511,-1276.73,0.00013698,2]
[332758981,1721506246521,-34531.25,0.00013698,2]
[332758982,1721506246530,-3104.21,0.00013698,2]
[332758983,1721506246591,-3104.21,0.00013698,2]
[332758984,1721506246601,-3104.21,0.00013698,2]
[332758985,1721506246611,-3104.21,0.00013698,2]
[332758986,1721506246620,-3104.21,0.00013698,2]
[332758987,1721506246629,-3104.21,0.00013698,2]
[332758988,1721506246640,-3104.21,0.00013698,2]
[332758989,1721506246650,-942.04,0.00013698,2]
[332758990,1721506246659,-3104.21,0.00013698,2]
[332758991,1721506246668,-3104.21,0.00013698,2]
[332758992,1721506246678,-3104.21,0.00013698,2]
[332758994,1721506246687,-3104.21,0.00013698,2]
[332758995,1721506246697,-3104.21,0.00013698,2]
[332758997,1721506246706,-3104.21,0.00013698,2]
[332758999,1721506246715,-3104.21,0.00013698,2]
[332759000,1721506246725,-3104.21,0.00013698,2]
[332759001,1721506246734,-3104.21,0.00013698,2]
[332759002,1721506246743,-3104.21,0.00013698,2]
[332759003,1721506246753,-3104.21,0.00013698,2]
[332759004,1721506246763,-3104.21,0.00013698,2]
[332759005,1721506246773,-3104.21,0.00013698,2]
[332759006,1721506246783,-500.0,0.00013698,2]
[332759007,1721506246792,-3104.21,0.00013698,2]
[332759008,1721506246801,-345.18233406,0.00013698,2]
[332759009,1721506246811,-3104.21,0.00013698,2]
[332759010,1721506246821,-500.0,0.00013698,2]
[332759011,1721506246831,-500.0,0.00013698,2]
[332759012,1721506246841,-3104.37919494,0.00013698,2]
[332759013,1721506246851,-1528.42,0.00013698,2]
[332759014,1721506246861,-512.07655604,0.00013698,2]
[332759015,1721506246874,-500.0,0.00013698,2]
[332759016,1721506246884,-500.0,0.00013698,2]
[332759017,1721506246894,-500.0,0.00013698,2]
[332759018,1721506246903,-2180.31,0.00013698,2]
[332759019,1721506246913,-533.02,0.00013698,2]
[332759020,1721506246923,-500.0,0.00013698,2]
[332759021,1721506246932,-997.36,0.00013698,2]
[332759022,1721506246942,-500.0,0.00013698,2]
[332759023,1721506246951,-1611.73,0.00013698,2]
[332759024,1721506246961,-556.66494551,0.00013698,2]
[332759025,1721506246970,-500.0,0.00013698,2]
[332759026,1721506246979,-500.0,0.00013698,2]
[332759027,1721506246988,-500.0,0.00013698,2]
[332759028,1721506246998,-500.0,0.00013698,2]
[332759029,1721506247007,-807.74,0.00013698,2]
[332759030,1721506247017,-500.0,0.00013698,2]
[332759031,1721506247026,-500.0,0.00013698,2]
[332759032,1721506247035,-514.71,0.00013698,2]
[332759033,1721506247045,-500.0,0.00013698,2]
[332759034,1721506247054,-2554.46,0.00013698,2]
[332759035,1721506247064,-3088.33,0.00013698,2]
[332759036,1721506247073,-501.43999562,0.00013698,2]
[332759037,1721506247083,-2477.78,0.00013698,2]
[332759038,1721506247092,-500.0,0.00013698,2]
[332759039,1721506247101,-500.0,0.00013698,2]
[332759040,1721506247111,-753.14,0.00013698,2]
[332759041,1721506247120,-500.0,0.00013698,2]
[332759042,1721506247130,-985.43,0.00013698,2]
[332759043,1721506247139,-500.4941119,0.00013698,2]
[332759044,1721506247149,-513.33275701,0.00013698,2]
[332759045,1721506247159,-500.0,0.00013698,2]
[332759046,1721506247170,-500.0,0.00013698,2]
[332759047,1721506247180,-2248.5,0.00013698,2]
[332759048,1721506247191,-500.0,0.00013698,2]
[332759049,1721506247200,-500.0,0.00013698,2]
[332759050,1721506247209,-500.0,0.00013698,2]
[332759051,1721506247218,-500.0,0.00013698,2]
[332759052,1721506247227,-1292.27,0.00013698,2]
[332759053,1721506247237,-500.0,0.00013698,2]
[332759054,1721506247247,-2877.29,0.00013698,2]
[332759055,1721506247257,-613.0113624,0.00013699,2]
[332759056,1721506247267,-3000.0,0.00013699,2]
[332759057,1721506247278,-1374.674225,0.00013699,2]
[332759058,1721506247287,-503.42,0.00013961,2]
[332759059,1721506247301,-503.42,0.00013961,2]
[332759060,1721506247310,-503.42,0.00013961,2]
[332759061,1721506247321,-503.42,0.00013961,2]
[332759062,1721506247331,-503.42,0.00013961,2]
[332759063,1721506247340,-503.42,0.00013961,2]
[332759064,1721506247349,-503.42,0.00013961,2]
[332759065,1721506247359,-503.42,0.00013961,2]
[332759066,1721506247368,-503.42,0.00013961,2]
[332759067,1721506247377,-503.42,0.00013961,2]
[332759068,1721506247387,-503.42,0.00013961,2]
[332759069,1721506247396,-503.52640636,0.00013961,2]
[332759070,1721506247405,-512.27304389,0.00013972,2]
[332759071,1721506247419,-500.0,0.00013972,2]
[332759072,1721506247428,-500.0,0.00013972,2]
[332759073,1721506247438,-500.0,0.00013972,2]
[332759074,1721506247447,-500.0,0.00013972,2]
[332759075,1721506247456,-500.0,0.00013972,2]
[332759076,1721506247466,-2281.54,0.00013972,2]
[332759077,1721506247476,-500.0,0.00013972,2]
[332759078,1721506247485,-500.0,0.00013972,2]
[332759079,1721506247496,-500.0,0.00013972,2]
[332759080,1721506247506,-500.0,0.00013972,2]
[332759081,1721506247516,-518.64,0.00013972,2]
[332759082,1721506247526,-500.0,0.00013972,2]
[332759083,1721506247536,-500.0,0.00013972,2]
[332759084,1721506247547,-500.0,0.00013972,2]
[332759085,1721506247557,-500.0,0.00013972,2]
[332759086,1721506247568,-500.0,0.00013972,2]
[332759087,1721506247579,-500.0,0.00013972,2]
[332759088,1721506247588,-578.61,0.00013972,2]
[332759089,1721506247598,-500.0,0.00013972,2]
[332759090,1721506247607,-500.0,0.00013972,2]
[332759091,1721506247618,-500.0,0.00013972,2]
[332759092,1721506247629,-583.33475046,0.00013972,2]
[332759093,1721506247640,-500.0,0.00013972,2]
[332759094,1721506247651,-688.02,0.00013972,2]
[332759095,1721506247665,-1006.7,0.00013972,2]
[332759096,1721506247674,-500.0,0.00013972,2]
[332759097,1721506247683,-558.88,0.00013972,2]
[332759098,1721506247693,-500.0,0.00013972,2]
[332759099,1721506247702,-500.0,0.00013972,2]
[332759100,1721506247712,-500.0,0.00013972,2]
[332759101,1721506247722,-1351.75,0.00013972,2]
[332759102,1721506247731,-500.0,0.00013972,2]
[332759103,1721506247741,-611.66,0.00013972,2]
[332759104,1721506247750,-500.0,0.00013972,2]
[332759105,1721506247759,-594.49,0.00013972,2]
[332759106,1721506247769,-732.38,0.00013972,2]
[332759107,1721506247779,-500.0,0.00013972,2]
[332759108,1721506247789,-500.0,0.00013972,2]
[332759109,1721506247799,-500.0,0.00013972,2]
[332759110,1721506247809,-546.65,0.00013972,2]
[332759111,1721506247819,-1717.99,0.00013972,2]
[332759112,1721506247828,-500.0,0.00013972,2]
[332759113,1721506247838,-500.0,0.00013972,2]
[332759114,1721506247848,-526.48973884,0.00013972,2]
[332759115,1721506247858,-982.46,0.00013972,2]
[332759116,1721506247872,-500.0,0.00013972,2]
[332759117,1721506247882,-2209.62,0.00013972,2]
[332759118,1721506247891,-500.0,0.00013972,2]
[332759119,1721506247901,-500.0,0.00013972,2]
[332759120,1721506247914,-500.0,0.00013972,2]
[332759121,1721506247924,-500.0,0.00013972,2]
[332759122,1721506247934,-500.0,0.00013972,2]
[332759123,1721506247945,-500.0,0.00013972,2]
[332759124,1721506247957,-500.0,0.00013972,2]
[332759125,1721506247967,-500.0,0.00013972,2]
[332759126,1721506247977,-500.0,0.00013972,2]
[332759127,1721506247986,-500.0,0.00013972,2]
[332759128,1721506247995,-500.0,0.00013972,2]
[332759129,1721506248004,-500.0,0.00013972,2]
[332759130,1721506248013,-500.0,0.00013972,2]
[332759131,1721506248022,-500.0,0.00013972,2]
[332759132,1721506248032,-1273.27,0.00013972,2]
[332759133,1721506248042,-500.0,0.00013972,2]
[332759134,1721506248052,-585.29,0.00013972,2]
[332759135,1721506248062,-500.0,0.00013972,2]
[332759136,1721506248071,-502.54970071,0.00013972,2]
[332759137,1721506248082,-500.0,0.00013972,2]
[332759138,1721506248092,-500.0,0.00013972,2]
[332759139,1721506248102,-500.0,0.00013972,2]
[332759140,1721506248111,-908.99,0.00013972,2]
[332759141,1721506248121,-500.0,0.00013972,2]
[332759142,1721506248130,-912.49,0.00013972,2]
[332759143,1721506248140,-500.0,0.00013972,2]
[332759144,1721506248150,-500.0,0.00013972,2]
[332759145,1721506248159,-500.0,0.00013972,2]
[332759146,1721506248172,-500.0,0.00013972,2]
[332759147,1721506248182,-500.0,0.00013972,2]
[332759148,1721506248191,-547.56,0.00013972,2]
[332759149,1721506248201,-500.0,0.00013972,2]
[332759150,1721506248210,-500.0,0.00013972,2]
[332759151,1721506248219,-500.0,0.00013972,2]
[332759152,1721506248230,-506.27059481,0.00013972,2]
[332759153,1721506248239,-740.02,0.00013972,2]
[332759154,1721506248248,-500.0,0.00013972,2]
[332759155,1721506248259,-500.0,0.00013972,2]
[332759156,1721506248269,-1001.96,0.00013972,2]
[332759157,1721506248279,-500.0,0.00013972,2]
[332759158,1721506248288,-782.62,0.00013972,2]
[332759159,1721506248298,-500.0,0.00013972,2]
[332759160,1721506248308,-500.0,0.00013972,2]
[332759161,1721506248317,-503.24791271,0.00013972,2]
[332759162,1721506248326,-611.34,0.00013972,2]
[332759163,1721506248336,-3109.54,0.00013972,2]
[332759164,1721506248346,-500.0,0.00013972,2]
[332759165,1721506248355,-500.0,0.00013972,2]
[332759166,1721506248365,-1589.98,0.00013972,2]
[332759167,1721506248375,-819.74,0.00013972,2]
[332759168,1721506248384,-500.0,0.00013972,2]
[332759169,1721506248394,-500.0,0.00013972,2]
[332759170,1721506248404,-500.0,0.00013972,2]
[332759171,1721506248417,-500.0,0.00013972,2]
[332759172,1721506248426,-500.76394624,0.00013972,2]
[332759173,1721506248435,-649.13,0.00013972,2]
[332759174,1721506248444,-500.0,0.00013972,2]
[332759175,1721506248453,-946.12,0.00013972,2]
[332759176,1721506248463,-500.0,0.00013972,2]
[332759177,1721506248472,-500.0,0.00013972,2]
[332759178,1721506248482,-812.17,0.00013972,2]
[332759179,1721506248491,-919.91,0.00013972,2]
[332759180,1721506248501,-291.97498847,0.00013972,2]
[332759181,1721506248510,-500.0,0.00013972,2]
[332759182,1721506248520,-558.69,0.00013972,2]
[332759183,1721506248529,-1872.07,0.00013972,2]
[332759184,1721506248539,-511.37040743,0.00013972,2]
[332759185,1721506248549,-500.0,0.00013972,2]
[332759186,1721506248559,-313.35768215,0.00013972,2]
[332759187,1721506248570,-500.0,0.00013972,2]
[332759188,1721506248580,-500.0,0.00013972,2]
[332759189,1721506248590,-500.0,0.00013972,2]
[332759190,1721506248599,-2041.58,0.00013972,2]
[332759191,1721506248610,-500.0,0.00013972,2]
[332759192,1721506248621,-547.96,0.00013972,2]
[332759193,1721506248632,-500.0,0.00013972,2]
[332759194,1721506248643,-500.0,0.00013972,2]
[332759195,1721506248652,-500.0,0.00013972,2]
[332759196,1721506248663,-1080.3,0.00013972,2]
[332759197,1721506248673,-500.0,0.00013972,2]
[332759198,1721506248682,-1142.56,0.00013972,2]
[332759199,1721506248692,-500.0,0.00013972,2]
[332759200,1721506248703,-500.0,0.00013972,2]
[332759201,1721506248713,-500.0,0.00013972,2]
[332759202,1721506248723,-500.0,0.00013972,2]
[332759203,1721506248733,-500.0,0.00013972,2]
[332759204,1721506248743,-509.41848931,0.00013972,2]
[332759205,1721506248754,-500.0,0.00013972,2]
[332759206,1721506248764,-500.0,0.00013972,2]
[332759207,1721506248774,-500.0,0.00013972,2]
[332759208,1721506248784,-1930.7,0.00013972,2]
[332759209,1721506248795,-504.00214773,0.00013972,2]
[332759210,1721506248806,-594.58,0.00013972,2]
[332759211,1721506248816,-1118.49,0.00013972,2]
[332759212,1721506248826,-500.0,0.00013972,2]
[332759213,1721506248837,-500.0,0.00013972,2]
[332759214,1721506248847,-500.0,0.00013972,2]
[332759215,1721506248858,-536.17445901,0.00013972,2]
[332759216,1721506248874,-4107.87,0.00013972,2]
[332759217,1721506248885,-500.0,0.00013972,2]
[332759218,1721506248895,-500.0,0.00013972,2]
[332759219,1721506248905,-659.5,0.00013972,2]
[332759220,1721506248929,-1031.35,0.00013972,2]
[332759221,1721506248940,-783.15,0.00013972,2]
[332759222,1721506248952,-500.0,0.00013972,2]
[332759223,1721506248963,-500.0,0.00013972,2]
[332759224,1721506248973,-503.55316172,0.00013972,2]
[332759225,1721506248984,-500.0,0.00013972,2]
[332759226,1721506248995,-500.0,0.00013972,2]
[332759227,1721506249006,-281.9230277,0.00013972,2]
[332759228,1721506249016,-500.0,0.00013972,2]
[332759229,1721506249028,-583.96,0.00013972,2]
[332759230,1721506249038,-500.0,0.00013972,2]
[332759231,1721506249049,-500.0,0.00013972,2]
[332759232,1721506249060,-500.0,0.00013972,2]
[332759233,1721506249070,-500.0,0.00013972,2]
[332759234,1721506249081,-659.36,0.00013972,2]
[332759235,1721506249092,-500.0,0.00013972,2]
[332759236,1721506249103,-500.0,0.00013972,2]
[332759237,1721506249114,-507.45038816,0.00013972,2]
[332759238,1721506249124,-500.0,0.00013972,2]
[332759239,1721506249135,-612.0,0.00013972,2]
[332759240,1721506249145,-500.0,0.00013972,2]
[332759241,1721506249155,-500.0,0.00013972,2]
[332759242,1721506249166,-500.0,0.00013972,2]
[332759243,1721506249177,-511.32174449,0.00013972,2]
[332759244,1721506249188,-500.0,0.00013972,2]
[332759245,1721506249199,-500.0,0.00013972,2]
[332759246,1721506249209,-500.0,0.00013972,2]
[332759247,1721506249221,-560.63,0.00013972,2]
[332759248,1721506249231,-500.0,0.00013972,2]
[332759249,1721506249242,-535.04,0.00013972,2]
[332759250,1721506249252,-500.0,0.00013972,2]
[332759251,1721506249263,-1811.52,0.00013972,2]
[332759252,1721506249274,-500.0,0.00013972,2]
[332759253,1721506249284,-500.0,0.00013972,2]
[332759254,1721506249295,-500.0,0.00013972,2]
[332759255,1721506249306,-897.56,0.00013972,2]
[332759256,1721506249316,-501.43123297,0.00013972,2]
[332759257,1721506249327,-500.0,0.00013972,2]
[332759258,1721506249338,-500.0,0.00013972,2]
[332759259,1721506249348,-500.0,0.00013972,2]
[332759260,1721506249360,-1282.95,0.00013972,2]
[332759261,1721506249370,-400.0,0.00013972,2]
[332759262,1721506249381,-500.0,0.00013972,2]
[332759263,1721506249391,-500.0,0.00013972,2]
[332759264,1721506249402,-779.56,0.00013972,2]
[332759265,1721506249413,-500.0,0.00013972,2]
[332759266,1721506249422,-500.0,0.00013972,2]
[332759267,1721506249433,-500.0,0.00013972,2]
[332759268,1721506249442,-500.0,0.00013972,2]
[332759269,1721506249454,-500.0,0.00013972,2]
[332759270,1721506249464,-520.9477985,0.00013972,2]
[332759271,1721506249474,-825.74,0.00013972,2]
[332759272,1721506249484,-500.0,0.00013972,2]
[332759273,1721506249495,-500.0,0.00013972,2]
[332759274,1721506249504,-652.79,0.00013972,2]
[332759275,1721506249514,-500.0,0.00013972,2]
[332759276,1721506249525,-500.0,0.00013972,2]
[332759277,1721506249535,-2620.27,0.00013972,2]
[332759278,1721506249545,-539.26,0.00013972,2]
[332759279,1721506249556,-1804.4,0.00013972,2]
[332759280,1721506249567,-500.0,0.00013972,2]
[332759281,1721506249577,-177.09484028,0.00013972,2]
[332759282,1721506249587,-500.0,0.00013972,2]
[332759283,1721506249597,-150.0,0.00013972,2]
[332759284,1721506249607,-500.0,0.00013972,2]
[332759285,1721506249617,-1766.9,0.00013972,2]
[332759286,1721506249627,-245.08411045,0.00013972,2]
[332759287,1721506249638,-2146.19,0.00013972,2]
[332759288,1721506249649,-507.42940929,0.00013972,2]
[332759289,1721506249658,-500.0,0.00013972,2]
[332759290,1721506249670,-500.0,0.00013972,2]
[332759291,1721506249680,-500.0,0.00013972,2]
[332759292,1721506249689,-500.0,0.00013972,2]
[332759293,1721506249699,-500.0,0.00013972,2]
[332759294,1721506249709,-569.67,0.00013972,2]
[332759295,1721506249719,-507.62,0.00013972,2]
[332759296,1721506249731,-500.0,0.00013972,2]
[332759297,1721506249740,-471.64085717,0.00013972,2]
[332759298,1721506249751,-500.0,0.00013972,2]
[332759299,1721506249761,-500.0,0.00013972,2]
[332759300,1721506249771,-500.0,0.00013972,2]
[332759301,1721506249781,-500.0,0.00013972,2]
[332759302,1721506249792,-500.0,0.00013972,2]
[332759303,1721506249802,-500.0,0.00013972,2]
[332759304,1721506249812,-2168.23,0.00013972,2]
[332759305,1721506249822,-500.0,0.00013972,2]
[332759306,1721506249832,-500.0,0.00013972,2]
[332759307,1721506249843,-921.42,0.00013972,2]
[332759308,1721506249854,-500.0,0.00013972,2]
[332759309,1721506249867,-2063.58,0.00013972,2]
[332759310,1721506249879,-1393.65,0.00013972,2]
[332759311,1721506249888,-500.0,0.00013972,2]
[332759312,1721506249898,-500.0,0.00013972,2]
[332759313,1721506249907,-618.28186363,0.00013972,2]
[332759314,1721506249918,-500.0,0.00013972,2]
[332759315,1721506249928,-500.0,0.00013972,2]
[332759316,1721506249938,-500.0,0.00013972,2]
[332759317,1721506249950,-500.0,0.00013972,2]
[332759318,1721506249960,-355.50504189,0.00013972,2]
[332759319,1721506249969,-541.46,0.00013972,2]
[332759320,1721506249978,-500.0,0.00013972,2]
[332759321,1721506249988,-500.0,0.00013972,2]
[332759322,1721506249997,-500.0,0.00013972,2]
[332759323,1721506250007,-521.45625736,0.00013972,2]
[332759324,1721506250017,-854.68,0.00013972,2]
[332759325,1721506250027,-500.0,0.00013972,2]
[332759326,1721506250036,-921.43,0.00013972,2]
[332759327,1721506250046,-500.0,0.00013972,2]
[332759328,1721506250055,-500.0,0.00013972,2]
[332759329,1721506250065,-721.38,0.00013972,2]
[332759330,1721506250075,-724.24,0.00013972,2]
[332759331,1721506250085,-500.0,0.00013972,2]
[332759332,1721506250094,-1791.92,0.00013972,2]
[332759333,1721506250105,-653.08,0.00013972,2]
[332759334,1721506250116,-500.0,0.00013972,2]
[332759335,1721506250127,-517.33,0.00013972,2]
[332759336,1721506250138,-529.26846187,0.00013972,2]
[332759337,1721506250148,-510.82,0.00013972,2]
[332759338,1721506250157,-542.0321779,0.00013972,2]
[332759339,1721506250169,-500.0,0.00013972,2]
[332759340,1721506250180,-289.40371987,0.00013972,2]
[332759341,1721506250189,-500.0,0.00013972,2]
[332759342,1721506250201,-500.0,0.00013972,2]
[332759343,1721506250211,-551.34285931,0.00013972,2]
[332759344,1721506250220,-699.32,0.00013972,2]
[332759345,1721506250230,-335.80325809,0.00013972,2]
[332759346,1721506250239,-763.32,0.00013972,2]
[332759347,1721506250249,-500.0,0.00013972,2]
[332759348,1721506250259,-683.83,0.00013972,2]
[332759349,1721506250269,-500.0,0.00013972,2]
[332759350,1721506250279,-500.0,0.00013972,2]
[332759351,1721506250289,-2216.14,0.00013972,2]
[332759352,1721506250298,-9974.88,0.00013972,2]
[332759353,1721506250308,-1069.52,0.00013972,2]
[332759354,1721506250318,-1566.01,0.00013972,2]
[332759355,1721506250327,-3824.39,0.00013972,2]
[332759356,1721506250337,-500.0,0.00013972,2]
[332759357,1721506250346,-500.0,0.00013972,2]
[332759358,1721506250356,-500.0,0.00013972,2]
[332759359,1721506250365,-500.0,0.00013972,2]
[332759360,1721506250374,-1003.63,0.00013972,2]
[332759361,1721506250385,-601.56,0.00013972,2]
[332759362,1721506250395,-2356.17,0.00013972,2]
[332759363,1721506250406,-2207.67,0.00013972,2]
[332759364,1721506250417,-256.28354357,0.00013972,2]
[332759365,1721506250427,-500.0,0.00013972,2]
[332759366,1721506250437,-500.0,0.00013972,2]
[332759367,1721506250447,-4640.9,0.00013972,2]
[332759368,1721506250459,-737.43,0.00013972,2]
[332759369,1721506250470,-5614.66,0.00013972,2]
[332759370,1721506250481,-616.11,0.00013972,2]
[332759371,1721506250491,-2074.95,0.00013972,2]
[332759372,1721506250502,-626.98,0.00013972,2]
[332759373,1721506250512,-500.0,0.00013972,2]
[332759374,1721506250523,-696.35,0.00013972,2]
[332759375,1721506250535,-586.14,0.00013972,2]
[332759376,1721506250546,-1193.56,0.00013972,2]
[332759377,1721506250558,-1357.75,0.00013972,2]
[332759378,1721506250567,-500.0,0.00013972,2]
[332759379,1721506250577,-2413.95,0.00013972,2]
[332759380,1721506250586,-1278.57,0.00013972,2]
[332759381,1721506250595,-500.0,0.00013972,2]
[332759382,1721506250605,-500.0,0.00013972,2]
[332759383,1721506250614,-170.43129503,0.00013972,2]
[332759384,1721506250624,-500.0,0.00013972,2]
[332759385,1721506250633,-500.0,0.00013972,2]
[332759386,1721506250642,-500.0,0.00013972,2]
[332759387,1721506250652,-500.0,0.00013972,2]
[332759388,1721506250662,-500.0,0.00013972,2]
[332759389,1721506250672,-510.07389428,0.00013972,2]
[332759390,1721506250681,-500.0,0.00013972,2]
[332759391,1721506250692,-511.02301535,0.00013972,2]
[332759392,1721506250702,-500.0,0.00013972,2]
[332759393,1721506250712,-2479.41,0.00013972,2]
[332759394,1721506250723,-500.0,0.00013972,2]
[332759395,1721506250734,-3568.54,0.00013972,2]
[332759396,1721506250744,-500.0,0.00013972,2]
[332759397,1721506250755,-653.69,0.00013972,2]
[332759398,1721506250764,-500.0,0.00013972,2]
[332759399,1721506250777,-653.11,0.00013972,2]
[332759400,1721506250787,-596.66,0.00013972,2]
[332759401,1721506250798,-510.42578769,0.00013972,2]
[332759402,1721506250809,-507.77956758,0.00013972,2]
[332759403,1721506250819,-500.0,0.00013972,2]
[332759404,1721506250829,-591.95,0.00013972,2]
[332759405,1721506250839,-500.0,0.00013972,2]
[332759406,1721506250849,-553.59452076,0.00013972,2]
[332759407,1721506250860,-601.52472544,0.00013972,2]
[332759408,1721506250875,-3611.41,0.00013972,2]
[332759409,1721506250886,-500.0,0.00013972,2]
[332759410,1721506250896,-1615.36,0.00013972,2]
[332759411,1721506250906,-2182.76,0.00013972,2]
[332759412,1721506250917,-500.0,0.00013972,2]
[332759413,1721506250927,-500.0,0.00013972,2]
[332759414,1721506250937,-1876.24,0.00013972,2]
[332759415,1721506250947,-500.0,0.00013972,2]
[332759416,1721506251128,-500.0,0.00013972,2]
[332759417,1721506251141,-922.66,0.00013972,2]
[332759418,1721506251151,-647.58,0.00013972,2]
[332759419,1721506251160,-500.0,0.00013972,2]
[332759420,1721506251170,-630.5,0.00013972,2]
[332759421,1721506251180,-874.33,0.00013972,2]
[332759422,1721506251189,-972.5,0.00013972,2]
[332759423,1721506251198,-219.41559619,0.00013972,2]
[332759424,1721506251208,-9525.09,0.00013972,2]
[332759425,1721506251218,-500.0,0.00013972,2]
[332759426,1721506251227,-500.0,0.00013972,2]
[332759427,1721506251237,-500.0,0.00013972,2]
[332759428,1721506251246,-500.0,0.00013972,2]
[332759429,1721506251256,-500.0,0.00013972,2]
[332759430,1721506251265,-500.0,0.00013972,2]
[332759431,1721506251275,-2915.71,0.00013972,2]
[332759432,1721506251284,-500.0,0.00013972,2]
[332759433,1721506251293,-500.0,0.00013972,2]
[332759434,1721506251303,-660.13,0.00013972,2]
[332759435,1721506251313,-500.0,0.00013972,2]
[332759436,1721506251322,-254.88943529,0.00013972,2]
[332759437,1721506251332,-500.0,0.00013972,2]
[332759438,1721506251342,-18390.94,0.00013972,2]
[332759439,1721506251351,-505.99,0.00013972,2]
[332759440,1721506251361,-3666.66,0.00013972,2]
[332759441,1721506251371,-500.0,0.00013972,2]
[332759442,1721506251380,-2974.58,0.00013972,2]
[332759443,1721506251390,-500.0,0.00013972,2]
[332759444,1721506251399,-1139.9,0.00013972,2]
[332759445,1721506251409,-2007.77,0.00013972,2]
[332759446,1721506251419,-2230.68,0.00013972,2]
[332759447,1721506251428,-500.0,0.00013972,2]
[332759448,1721506251438,-3008.42,0.00013972,2]
[332759449,1721506251447,-562.63316697,0.00013972,2]
[332759450,1721506251457,-5451.22,0.00013972,2]
[332759451,1721506251466,-641.37526896,0.00013972,2]
[332759452,1721506251475,-650.96,0.00013972,2]
[332759453,1721506251485,-664.55,0.00013972,2]
[332759454,1721506251494,-500.0,0.00013972,2]
[332759455,1721506251504,-1424.47,0.00013972,2]
[332759456,1721506251513,-500.0,0.00013972,2]
[332759457,1721506251523,-500.0,0.00013972,2]
[332759458,1721506251532,-500.0,0.00013972,2]
[332759459,1721506251542,-601.67470916,0.00013972,2]
[332759460,1721506251551,-500.0,0.00013972,2]
[332759461,1721506251561,-4967.36,0.00013972,2]
[332759462,1721506251571,-500.0,0.00013972,2]
[332759463,1721506251580,-500.0,0.00013972,2]
[332759464,1721506251591,-3110.77,0.00013972,2]
[332759465,1721506251600,-500.0,0.00013972,2]
[332759466,1721506251610,-4593.9,0.00013972,2]
[332759467,1721506251620,-2600.56,0.00013972,2]
[332759468,1721506251630,-1077.09,0.00013972,2]
[332759469,1721506251640,-500.0,0.00013972,2]
[332759470,1721506251651,-7347.6,0.00013972,2]
[332759471,1721506251662,-520.92944104,0.00013972,2]
[332759472,1721506251671,-512.59,0.00013972,2]
[332759473,1721506251681,-500.0,0.00013972,2]
[332759474,1721506251690,-500.0,0.00013972,2]
[332759475,1721506251700,-500.0,0.00013972,2]
[332759476,1721506251709,-774.02,0.00013972,2]
[332759477,1721506251719,-585.32,0.00013972,2]
[332759478,1721506251729,-500.0,0.00013972,2]